Cogmind - Beta 14 @@@ ROGUE MODE // 2024.11.10 @ 18:12:16 Player: Fangrelle Result: Destroyed by X9-13G(R) with Subdweller Shrapnel Launcher Performance ------------- Evolutions (0) 0 Regions Visited (2) 400 Robots Destroyed (34) 170 Value Destroyed (908) 908 Prototype IDs (0) 0 Alien Tech Used (0) 0 Bonus (0) 0 TOTAL SCORE: 1478 Bonus ------- None Cogmind --------- Core Integrity 0/250 Matter 229/300 Energy 77/100 System Corruption 0% Temperature Cool (0) Movement Treading (160) Location -10/Subcaves Parts ------- > --- POWER (1) -------- (None) > --- PROPULSION (2) --- Light Treads > --- UTILITY (2) ------ (None) > --- WEAPON (2) ------- EM Pulse Gun > --- INVENTORY (5) ---- Huge Storage Unit Medium Matter Pod (100) Hacking Suite Mining Laser Peak State ------------ > --- POWER ------------ Light Ion Engine > --- PROPULSION ------- Light Treads Light Treads > --- UTILITY ---------- Scrap Shield > --- WEAPON ----------- EM Pulse Gun EM Pulse Gun > --- INVENTORY -------- Huge Storage Unit Medium Matter Pod Hacking Suite Recalibrator Mining Laser [Rating: 10] Favorites ----------- Power Ion Engine Engine Ion Engine Propulsion Light Treads Treads Light Treads Leg Aluminum Leg Utility Huge Storage Unit Storage Huge Storage Unit Protection Scrap Shield Weapon EM Pulse Gun Energy Gun EM Pulse Gun Ballistic Gun Assault Rifle Launcher Grenade Launcher Build | -11 -10 -10 ------- Run | Yrd Mat Sub Slots Evolved . | . . . Power . | . . . Propulsion . | . . . Utility . | . . . Weapon . | . . . Parts Attached 16 | . 6 10 Power 1 | . . 1 Engine 1 | . . 1 Core . | . . . Reactor . | . . . Propulsion 3 | . 3 . Treads 3 | . 3 . Leg . | . . . Wheel . | . . . Hover . | . . . Flight . | . . . Utility 2 | . 1 1 Device . | . . . Storage 1 | . 1 . Processor . | . . . Hackware . | . . . Protection 1 | . . 1 Artifact . | . . . Weapon 10 | . 2 8 Energy Gun 5 | . 1 4 Energy Cannon . | . . . Ballistic Gun 1 | . 1 . Ballistic Cannon . | . . . Launcher 4 | . . 4 Special Weapon . | . . . Impact Weapon . | . . . Slashing Weapon . | . . . Piercing Weapon . | . . . Special Melee Weapon . | . . . Unidentified Prototypes . | . . . Parts Lost 6 | . . 6 Power 2 | . . 2 Propulsion 1 | . . 1 Utility 1 | . . 1 Weapon 2 | . . 2 Highest Loss Streak 5 | . . 5 To Critical Strikes . | . . . Average Slot Usage (%) 93 | . 99 83 Engine 13 | . 14 13 Treads 27 | . 28 27 Storage 18 | . 27 2 Protection 4 | . . 11 Energy Gun 26 | . 27 22 Launcher 1 | . . 5 Peak Build Rating 10 | 6 9 10 Average Rating 8 | 6 8 8 On Entrance 7 | 6 6 9 Naked Turns . | . . . Heaviest Build 94 | 13 94 90 Greatest Support 40 | 20 40 40 Greatest Overweight (x) 2 | . 2 2 Average Overweight (x) . | . 1 . Largest Inventory Capacity 25 | 8 25 25 Average Capacity 18 | 8 24 7 Most Carried 20 | 6 20 20 Average Carried 10 | 6 12 7 Final Capacity 25 | 8 25 5 Final Carried 20 | 6 20 4 Class Distribution -------------------- 100% | Mutant Dominant Class ---------------- Mutant | -10/Materials Mutant | -10/Subcaves Resources | -11 -10 -10 ----------- Run | Yrd Mat Sub Matter Collected 524 | 190 170 164 Remotely . | . . . Salvage Created 1306 | . 754 552 Parts 87 | . 50 37 Haulers Intercepted 1 | . 1 . Recyclers Shooed . | . . . Parts Field Recycled . | . . . Retrieved Matter . | . . . Parts Self-Destructed 7 | . . 7 Prevented 1 | . . 1 Kills | -11 -10 -10 ------- Run | Yrd Mat Sub Combat Hostiles Destroyed 25 | . 13 12 Guns 19 | . 12 7 AOE 6 | . 1 5 Classes Destroyed 10 | . 7 3 Worker 2 | . 2 . Hauler 1 | . 1 . Mechanic 1 | . 1 . Operator 2 | . 2 . Watcher 3 | . 3 . Swarmer 6 | . 3 3 Grunt 10 | . 10 . Sentry 1 | . . 1 Cobbler 1 | . . 1 Subdweller 8 | . . 8 Best Kill Streak 3 | . 3 3 Combat Bots Only 3 | . 3 3 Max Kills in Single Turn 2 | . 2 2 Gunslinging . | . . . Exploded 2 | . 1 2 Melee . | . . . Uniques/NPCs Destroyed . | . . . Combat | -11 -10 -10 -------- Run | Yrd Mat Sub Hostile Shots Fired 119 | . 43 76 Missed 45 | . 16 29 Damage Taken 1294 | . 315 979 Core 271 | . 69 202 Absorbed by Shields . | . . . Core Remaining (%) 100 | 100 . . Volleys Fired 91 | . 45 46 Largest 2 | . 2 2 Hottest 80 | . 80 80 Shots Fired 177 | . 90 87 Gun 161 | . 90 71 Cannon . | . . . Launcher 16 | . . 16 Special . | . . . Kinetic . | . . . Thermal . | . . . Explosive 16 | . . 16 Electromagnetic 161 | . 90 71 Robot Hit Streak 15 | . 9 15 Robot Miss Streak 3 | . 3 3 Penetration Max . | . . . Secondary Targets 2 | . 2 . Max Gunslinging Chain 1 | . 1 . Shots Hit Robots 101 | . 57 44 Core Hits 55 | . 28 27 Critical Kills . | . . . Critical Parts Destroyed . | . . . Critical Strikes 2 | . 1 1 Corrupt 2 | . 1 1 Melee Attacks . | . . . Impact . | . . . Slashing . | . . . Piercing . | . . . Sneak Attacks . | . . . Combat Hostiles . | . . . Follow-up Attacks . | . . . Damage Inflicted 1832 | . 1027 805 Guns 1358 | . 913 445 Cannons . | . . . Explosions 468 | . 108 360 Melee . | . . . Ramming 6 | . 6 . Kinetic . | . . . Thermal 108 | . 108 . Explosive 360 | . . 360 Electromagnetic 1358 | . 913 445 Impact . | . . . Slashing . | . . . Piercing . | . . . Highest Corruption . | . . . Average Corruption . | . . . Corruption Purged . | . . . Corruption Blocked . | . . . Overload Shots . | . . . Overflow Damage 8 | . . 8 Projectiles . | . . . Explosions 8 | . . 8 Melee . | . . . Knockbacks . | . . . Impact . | . . . Kinetic . | . . . Secondary . | . . . Self-Inflicted Damage 97 | . 31 66 Shots 5 | . 2 3 Rammed 1 | . 1 . Targets Rammed 1 | . 1 . Kicked . | . . . Crushed . | . . . Highest Temperature 162 | . 162 1 Average Temperature 49 | . 49 1 Received Heat Transfer 339 | . 111 228 Siege Activations . | . . . Robots Corrupted 1 | . 1 . Combat Hostiles . | . . . Parts Fried 10 | . 5 5 Impact Corruptions . | . . . Robots Melted . | . . . Combat Hostiles . | . . . Parts Melted 1 | . . 1 Heat Transferred 200 | . 200 . Parts Sabotaged . | . . . Parts Stolen . | . . . Parts Stripped . | . . . Power Chain Reactions 3 | . 3 . Alert | -11 -10 -10 ------- Run | Yrd Mat Sub Peak Influence 163 | . 163 . Initial . | . . . Average 77 | . 77 . Maximum Alert Level . | . . . Low Security (%) 100 | 100 100 . Level 1 . | . . . Level 2 . | . . . Level 3 . | . . . Level 4 . | . . . Level 5 . | . . . High Security . | . . . Max Security . | . . . Squads Dispatched 4 | . 4 . Investigation 2 | . 2 . Extermination . | . . . Reinforcement 2 | . 2 . Assault . | . . . Garrison . | . . . Intercept . | . . . Searches Triggered . | . . . Construction Impeded . | . . . Haulers Reinforced . | . . . Active Scanning Responses . | . . . Cargo Convoy Interrupts . | . . . Stealth | -11 -10 -10 --------- Run | Yrd Mat Sub Distress Signals . | . . . Communications Jammed . | . . . Distress Signals . | . . . Times Spotted 33 | . 19 14 Peak Tracking Total 4 | . 3 4 Tactical Retreats 2 | . . 2 Traps | -11 -10 -10 ------- Run | Yrd Mat Sub Traps Triggered . | . . . Indirectly . | . . . Trap Hack Attempts . | . . . Triggered . | . . . Disarmed . | . . . Reprogrammed . | . . . Reused . | . . . Traps Extracted . | . . . Installed . | . . . Triggered . | . . . Machines | -11 -10 -10 ---------- Run | Yrd Mat Sub Machines Disabled 2 | . 2 . Max in Single Turn 2 | . 2 . Machines Repaired . | . . . Machines Dismantled . | . . . Machines Sabotaged . | . . . Overloaded Fab Kills . | . . . Hacking | -11 -10 -10 --------- Run | Yrd Mat Sub Machines Accessed 8 | . 8 . Terminals 6 | . 6 . Fabricators . | . . . Repair Stations . | . . . Recycling Units 2 | . 2 . Scanalyzers . | . . . Garrison Access . | . . . Total Hacks 33 | . 33 . Successful 23 | . 23 . Failed 9 | . 9 . Catastrophic . | . . . Database Lockouts 1 | . 1 . Manual 31 | . 31 . Terminals 27 | . 27 . Fabricators . | . . . Repair Stations . | . . . Recycling Units 6 | . 6 . Scanalyzers . | . . . Garrison Access . | . . . Terminal Hacks 8 | . 8 . Robot Analysis 4 | . 4 . Terminal Index 1 | . 1 . Hauler Manifests 1 | . 1 . Zone Layout 2 | . 2 . Fabricator Hacks . | . . . Repair Station Hacks . | . . . Recycling Unit Hacks 2 | . 2 . Report Inventory 2 | . 2 . Scanalyzer . | . . . Garrison Access Hacks . | . . . Unauthorized Hacks 13 | . 13 . Terminals 9 | . 9 . Assimilate 1 | . 1 . Botnet 6 | . 6 . Disrupt 1 | . 1 . Operators 1 | . 1 . Fabricators . | . . . Repair Stations . | . . . Recycling Units 4 | . 4 . Reject 1 | . 1 . Mask 1 | . 1 . Tunnel 2 | . 2 . Scanalyzers . | . . . Garrison Access . | . . . Data Cores Recovered . | . . . Used . | . . . Hacking Detections 6 | . 6 . Full Trace Events . | . . . Feedback Events . | . . . Feedback Blocked . | . . . Robot Schematics Acquired . | . . . Robots Built . | . . . Authchips . | . . . Time . | . . . Total Robot Build Rating . | . . . Part Schematics Acquired . | . . . Parts Built . | . . . Authchips . | . . . Time . | . . . Total Part Build Rating . | . . . Parts Repaired . | . . . Time . | . . . Parts Recycled . | . . . Recycled Matter . | . . . Retrieved Matter . | . . . Retrieved Components . | . . . Parts Scanalyzed . | . . . Part Schematics Acquired . | . . . Parts Damaged . | . . . Bothacking | -11 -10 -10 ------------ Run | Yrd Mat Sub Used RIF Installer . | . . . Robots Hacked . | . . . Non-combat . | . . . Combat . | . . . Robot Hacks Applied . | . . . Relay Couplers Released . | . . . Fabnet Peak Effective % . | . . . Robots Rewired . | . . . Allies Hacked . | . . . Hacks Repelled . | . . . Allies | -11 -10 -10 -------- Run | Yrd Mat Sub Total Allies . | . . . Largest Group . | . . . Highest-Rated Group . | . . . Highest-Rated Ally . | . . . Total Orders . | . . . Ally Attacks . | . . . Total Damage . | . . . Kills . | . . . Allies Corrupted . | . . . Allies Melted . | . . . Intel | -11 -10 -10 ------- Run | Yrd Mat Sub Robot Analysis Total 4 | . 4 . Derelict Logs Recovered . | . . . Drone Launches . | . . . Drone Recoveries . | . . . Exploration | -11 -10 -10 ------------- Run | Yrd Mat Sub Turns Passed 4659 | 3 2960 1696 Spaces Moved 1746 | 3 847 896 Core . | . . . Treads 1743 | . 847 896 Legs 3 | 3 . . Wheels . | . . . Hover . | . . . Flight . | . . . Fastest Speed 120 | 120 160 160 Average Speed 237 | 120 307 171 Slowest Speed 320 | 120 320 320 Overloaded Moves . | . . . Propulsion Burnouts . | . . . Robots Hopped . | . . . Cave-ins Triggered . | . . . Exploration Rate (%) 43 | 2 87 42 Regions Visited 2 Branch Regions 1 Pre-discovered Areas 3 | . 2 1 Known Exits Taken . | . . . Unknown Exits Taken 2 | 1 1 . Scrap Searched . | . . . Spaces Dug 12 | . . 12 Terrain Destroyed 76 | . 7 69 Melee . | . . . Projectile . | . . . AOE 76 | . 7 69 Terrain Rammed . | . . . Walls Destroyed . | . . . Machines Disabled . | . . . Actions | -11 -10 -10 --------- Run | Yrd Mat Sub Total 2077 | 2 1108 967 Wait 192 | . 190 2 Move 1744 | 2 846 896 Hop . | . . . Pick Up 19 | . 16 3 Fast Attach 4 | . 2 2 Attach 1 | . . 1 Detach . | . . . Swap 11 | . 4 7 Drop 9 | . 4 5 Fire 91 | . 45 46 Melee . | . . . Ram . | . . . Kick . | . . . Crush 1 | . 1 . Escape Stasis . | . . . Rewire . | . . . Trap . | . . . Miscellaneous 5 | . . 5 Route ------- -11/Scrapyard -10/Materials (discovered 6 exits: [*Mat x3] / [*Min x2] / [*Sub]) -10/Subcaves (discovered 1 exit: [*Mat]) History --------- Turn | Location | Event 1 | -11/Scrapyard | Discovered new exit (range 0) 4 | -11/Scrapyard | Entered Materials 317 | -10/Materials | Build established: Mutant 397 | -10/Materials | Discovered new exit (range 10) 639 | -10/Materials | Discovered new exit (range 6) 684 | -10/Materials | Discovered new exit (range 17) 684 | -10/Materials | Central database locked down 983 | -10/Materials | Discovered new exit (range 16) 1824 | -10/Materials | Discovered new exit (range 3) 2252 | -10/Materials | Discovered new exit (range 10) 2964 | -10/Materials | Entered Subcaves 3461 | -10/Subcaves | Core integrity fell below 50% 3568 | -10/Subcaves | Learned location of Zion (-6) 3568 | -10/Subcaves | Met a Zionite searching for "candidates" 3611 | -10/Subcaves | Shifting Twisted Machinery released Battle Rifle 3712 | -10/Subcaves | A swath of the cavern ceiling suddenly collapsed 3837 | -10/Subcaves | Shifting Twisted Machinery released Sub. Monowheel 4549 | -10/Subcaves | Discovered new exit (range 13) 4652 | -10/Subcaves | Core integrity fell below 20% 4660 | -10/Subcaves | Destroyed by X9-13G(R) with Subdweller Shrapnel Launcher Last Messages --------------- 03990_ Subatomizers dissect the Corrupted Sub. Monowheel. 04020_ Acquired 7 matter. 04025_ Subatomizers dissect the Corrupted Sub. Monowheel. 04037_ Subatomizers dissect the Corrupted Sub. Monowheel, destroying it. 04070_ The unstable cave ceiling collapses. 04074_ Acquired 10 matter. 04395_ Critical hit (Burn: +37). 04399_ Y-45 Defender destroyed. 04404_ Imp. Ion Engine self-destruct mechanism malfunctions. 04407_ Heat Sink fries itself beyond repair. 04498_ Acquired 11 matter. 04500_ FG-W3S(u) tweaks Twisted Machinery. 04549_ EXIT=FOUND 04635_ Scrap Shield destroyed. 04635_ Lgt. Ion Engine destroyed. 04651_ Lgt. Treads destroyed. 04651_ Destroyed Lgt. Treads. 04654_ R7-985(R) destroyed. 04655_ Grenade Launcher destroyed. 04660_ EM Pulse Gun destroyed. Map ----- +----------------------------------------------------+ | ?????????????????????????????????????????????????? | | ?????????????????????????????????????????????????? | | ?????????????????????????????????????????????????? | | ?????????????????????????????????????????????????? | | ?????????????????????????????????????????????????? | | ?????????????????????????????????????????????????? | | ?????????????????????????????????????????????????? | | ?????????????????????????????????????????????????? | | ?????????????????????????????????????????????????? | | ?????????????????????????????????????????????????? | | ????????????????????????? ??????????????????????? | | ????????????????????????? ??????????????????????? | | ????????????????????????? "#??##????????????????? | | ???????????????? ???????? "#? #???????????????? | | ???????????????? ??????? ;## ##??????????????? | | ???????????????## #####?? ;; ;???????????????? | | ???????????????# # ## ##??????????????? | | ???????????????? [ ;#??????????????? | | ????????????????? #??????????????? | | ??????????????????# ##?????????????? | | ???????????????????# #?????????????? | | ???????????????????# #?????????????? | | ????????????????????# #?????????????? | | ????????????????????#; #??????????????? | | ????????????????##???#; #?????????????????? | | ??????????# ### ##; @ #??????????????????? | | ??????????# ;#??????????????????? | | ?????????# ;#??????????????????? | | ?????????# # ### ;; ###????????????????? | | ???????????????????#### ### ##???????????????? | | ??????????????????????###&! ## ##??????????????? | | ???????????????????????#&%R #??????????????? | | ????????????????????#####] #??????????????? | | ?????????????###? ?## " ##?????????????? | | ???????????? # ! # #?????????????? | | ???????????? ###?????????????? | | ???????????? ##??????????????? | | ???????????? #??????????????? | | ???????????? #??????????????? | | ????????????? ## #??????????????? | | ????????????????# #??????????????? | | ????????????????# ## #"" ##??????????????? | | ????????????????#??######" ##???????????????? | | ????????????????????????## #????????????????? | | ?????????????????????##### ##????????????????? | | ?????????????????????# #?##??????????????? | | ?????????????????????# ### ## #??????????????? | | ?????????????????????# ### #??????????????? | | ????????????????????## ## #??????????????? | | ???????????????????## #??????????????? | +----------------------------------------------------+ Best States ------------- Heat Dissipation 25 Energy Generation 10 Energy Capacity 250 Matter Stores 300 Matter Capacity 300 Sight Range 16 Terrain Scan Density 10 Armor Coverage 800 Evasion (%) 40 Recoil Reduction 2 Item Schematics ----------------- None Robot Schematics ------------------ None Fabricated ------------ Nothing Alien Tech Used ----------------- None Achievements -------------- None Challenges ------------ None Game ------ Seed LightConcussivePod Manual? 0 Play Time 00:16:37 Cumulative 46.8 hours Start 2024.11.10 @ 17:55:58 End 2024.11.10 @ 18:12:16 Sessions 1 Manual Loads 0 Difficulty Rogue Special Mode None Game No. 90 Rogue 90 Adventurer 0 Explorer 0 Win Type - Total 0 Types 0/0/0/0/0/0/0/0/0 Lore% 36 Gallery% 30 Achievement% 32 Wizard Run 0 Options --------- Layout 0 ASCII 0 Keyboard 0 Movement Mouse Keybinds 0 Fullscreen 1 Font 24/Smallcaps Map View 183x50 Zoom Use 43% Tactical HUD 1 Map Filters NONE Filters NONE Steam 1 RUN: 3428217d-dea4-49f4-8025-c7084d855bb7